bitfinex-derivatives/quotes_SOLF0:USTF0_20220109
["timestamp","ask_amount","ask_price","bid_price","bid_amount"]
[1641731044649,4.0,139.56,139.52,2.68656867]
[1641731044848,4.0,139.6,139.52,2.68656867]
[1641731045049,42.88963008,139.61,139.52,5.02946667]
[1641731045353,4.0,139.6,139.53,2.342898]
[1641731045551,4.0,139.54,139.53,2.342898]
[1641731045752,4.0,139.54,139.52,2.68656867]
[1641731045951,4.0,139.53,139.52,2.68656867]
[1641731046152,4.0,139.53,139.48,42.88963008]
[1641731046752,4.0,139.53,139.49,2.34356142]
[1641731046952,27.66479,139.53,139.49,5.03076589]
[1641731047151,4.0,139.5,139.49,5.03076589]
[1641731048051,27.66479,139.55,139.49,5.03076589]
[1641731048351,27.66479,139.55,139.5,2.34356142]
[1641731048753,4.0,139.51,139.5,2.34356142]
[1641731048953,27.66479,139.55,139.5,2.34356142]
[1641731049253,4.0,139.51,139.5,2.34356142]
[1641731049956,4.0,139.51,139.48,2.34356142]
[1641731050155,4.0,139.49,139.48,2.34356142]
[1641731050961,4.0,139.49,139.47,2.34356142]
[1641731051260,4.0,139.48,139.47,2.34356142]
[1641731051461,4.0,139.48,139.46,25.77229167]
[1641731051662,4.0,139.5,139.46,25.77229167]
[1641731051865,4.0,139.51,139.46,25.77229167]
[1641731052761,49.732,139.54,139.46,25.77229167]
[1641731053061,4.0,139.5,139.48,27.66479]
[1641731053361,4.0,139.5,139.47,15.22484008]
[1641731054162,4.0,139.54,139.47,15.22484008]
[1641731055164,4.0,139.54,139.46,25.77229167]
[1641731059769,4.0,139.49,139.46,25.77229167]
[1641731060669,4.0,139.53,139.46,25.77229167]
[1641731060870,4.0,139.47,139.45,15.22484008]
[1641731061071,4.0,139.46,139.45,15.22484008]
[1641731061671,8.0,139.46,139.42,40.2434309]
[1641731061871,4.0,139.44,139.42,40.2434309]
[1641731062075,4.0,139.43,139.4,40.2434309]
[1641731062271,4.0,139.41,139.4,40.2434309]
[1641731062971,4.0,139.41,139.37,40.2434309]
[1641731063171,4.0,139.45,139.38,27.66479]
[1641731065473,4.0,139.45,139.39,2.68372262]
[1641731066076,4.0,139.43,139.39,2.68372262]
[1641731066274,4.0,139.45,139.39,2.68372262]
[1641731066675,4.0,139.45,139.4,2.34547018]
[1641731067180,4.0,139.45,139.43,27.66479]
[1641731067379,50.3571,139.5,139.43,27.66479]
[1641731067577,4.0,139.5,139.44,2.34547018]
[1641731067777,4.0,139.45,139.44,2.34547018]
[1641731067982,4.0,139.45,139.44,5.0291928]
[1641731068779,4.0,139.45,139.44,2.34547018]
[1641731069580,4.0,139.45,139.4,4.13747018]
[1641731069780,4.0,139.49,139.4,4.13747018]
[1641731069983,4.0,139.49,139.41,2.34547018]
[1641731070180,4.0,139.49,139.41,5.02687816]
[1641731070379,4.0,139.44,139.41,5.02687816]
[1641731070780,4.0,139.44,139.42,5.02687816]
[1641731071182,4.0,139.44,139.43,2.34547018]
[1641731071385,27.66479,139.48,139.43,5.02687816]
[1641731071582,4.0,139.46,139.43,5.02687816]
[1641731072083,4.0,139.46,139.44,2.34547018]
[1641731072485,4.0,139.45,139.41,4.13747018]
[1641731072683,4.0,139.49,139.41,2.34547018]
[1641731072882,4.0,139.44,139.42,2.34547018]
[1641731073285,4.0,139.44,139.43,2.68214605]
[1641731073684,4.0,139.44,139.43,5.02761623]
[1641731073884,4.0,139.44,139.43,2.34547018]
[1641731074184,4.0,139.5,139.43,2.34547018]
[1641731074685,4.0,139.5,139.41,2.34547018]
[1641731075088,4.0,139.5,139.44,2.34547018]
[1641731075487,4.0,139.5,139.42,30.01026018]
[1641731076288,4.0,139.45,139.42,30.01026018]
[1641731076488,4.0,139.45,139.43,5.02950992]
[1641731076889,4.0,139.45,139.44,2.34547018]
[1641731077789,4.0,139.45,139.44,2.68403974]
[1641731078189,4.0,139.45,139.44,5.02971504]
[1641731078390,4.0,139.45,139.44,2.3456753]
[1641731078989,4.0,139.45,139.41,2.68403974]
[1641731078990,4.0,139.45,139.42,2.3456753]
[1641731079192,4.0,139.45,139.44,2.68403974]
[1641731079792,4.0,139.45,139.43,2.68403974]
[1641731079992,4.0,139.45,139.44,2.3456753]
[1641731080695,4.0,139.45,139.44,5.02971504]
[1641731081494,4.0,139.47,139.44,5.02971504]
[1641731081695,4.0,139.49,139.44,5.02971504]
[1641731081896,4.0,139.49,139.45,2.68403974]
[1641731082096,4.0,139.49,139.45,5.02971504]
[1641731082696,4.0,139.49,139.46,2.3456753]
[1641731083099,4.0,139.49,139.46,5.02971504]
[1641731083495,4.0,139.49,139.46,32.69450504]
[1641731083696,4.0,139.49,139.47,2.3456753]
[1641731083897,4.0,139.49,139.47,5.02971504]
[1641731084297,4.0,139.5,139.47,5.02971504]
[1641731084498,34.83479072,139.55,139.47,5.02971504]
[1641731084697,34.83479072,139.55,139.48,5.02971504]
[1641731085098,27.66479,139.55,139.49,2.3456753]
[1641731085599,4.0,139.52,139.49,5.02971504]
[1641731085899,4.0,139.52,139.5,2.3456753]
[1641731086199,4.0,139.52,139.5,5.02971504]
[1641731086501,4.0,139.51,139.5,5.02971504]
[1641731086901,4.0,139.51,139.47,49.7474]
[1641731087100,4.0,139.51,139.46,27.66479]
[1641731087301,4.0,139.51,139.48,2.34403857]
[1641731087601,31.66479,139.55,139.48,2.34403857]
[1641731087800,31.66479,139.55,139.47,56.27958854]
[1641731088003,27.66479,139.55,139.47,56.27958854]
[1641731088202,27.66479,139.55,139.48,5.02948854]
[1641731088404,4.0,139.51,139.48,5.02948854]
[1641731088603,4.0,139.5,139.49,2.34403857]
[1641731089004,4.0,139.5,139.48,2.68544997]
[1641731089206,4.0,139.53,139.49,2.68544997]
[1641731089405,4.0,139.5,139.49,2.68544997]
[1641731090005,4.0,139.5,139.44,48.0754]
[1641731090407,4.0,139.47,139.44,48.0754]
[1641731090606,4.0,139.51,139.41,1.792]
[1641731090807,4.0,139.51,139.45,5.03051921]
[1641731091009,4.0,139.48,139.45,5.03051921]
[1641731091209,4.0,139.52,139.46,2.34475153]
[1641731091408,4.0,139.47,139.46,2.34475153]
[1641731091608,4.0,139.47,139.46,5.03051921]
[1641731093713,4.0,139.47,139.46,2.34475153]
[1641731093909,4.0,139.47,139.42,42.87403692]
[1641731094309,4.0,139.47,139.43,2.3449432]
[1641731094509,4.0,139.47,139.43,5.03223132]
[1641731095113,4.0,139.47,139.44,2.68728812]
[1641731095312,4.0,139.47,139.44,5.03223132]
[1641731095713,4.0,139.47,139.45,2.3449432]
[1641731095914,4.0,139.48,139.45,5.03223132]
[1641731096513,4.0,139.48,139.46,2.3449432]
[1641731096714,27.66479,139.52,139.46,5.03223132]
[1641731097015,4.0,139.49,139.46,2.68728812]
[1641731097213,27.66479,139.52,139.46,2.68728812]
[1641731097415,27.66479,139.52,139.47,2.68728812]
[1641731097616,4.0,139.49,139.47,5.03214315]
[1641731098017,31.66479,139.52,139.47,2.68728812]
[1641731098217,4.0,139.48,139.47,2.68728812]
[1641731098821,4.0,139.48,139.45,27.66479]
[1641731099022,31.66479,139.52,139.45,27.66479]
[1641731099622,2.38552894,139.51,139.46,2.68862178]
[1641731099822,2.38552894,139.51,139.46,5.03357898]
[1641731100223,27.66479,139.52,139.46,2.68862178]
[1641731100623,4.0,139.5,139.46,2.68862178]
[1641731100825,4.0,139.49,139.46,2.68862178]
[1641731101026,4.0,139.5,139.46,2.68862178]
[1641731101227,4.0,139.5,139.47,2.34479774]
[1641731101427,4.0,139.49,139.47,2.34479774]
[1641731101627,4.0,139.48,139.47,2.34479774]
[1641731101826,4.0,139.54,139.47,2.34479774]
[1641731102027,4.0,139.49,139.47,2.34479774]
[1641731102827,4.0,139.53,139.46,2.34479774]
[1641731103027,42.87403692,139.55,139.48,2.68860166]
[1641731103028,4.0,139.49,139.48,2.68860166]
[1641731103628,4.0,139.49,139.47,2.68860166]
[1641731103828,46.87403692,139.55,139.47,2.68860166]
[1641731104030,42.87403692,139.55,139.47,2.68860166]
[1641731104428,4.0,139.52,139.47,2.68860166]
[1641731104628,4.0,139.52,139.48,2.34419819]
[1641731105729,4.0,139.52,139.5,27.66479]
[1641731105928,4.0,139.54,139.5,33.97679]
[1641731107231,4.0,139.54,139.51,2.34356327]
[1641731107833,4.0,139.54,139.51,5.03106324]
[1641731108034,15.20924692,139.59,139.51,5.03106324]
[1641731108235,15.20924692,139.59,139.52,2.34356327]
[1641731108435,4.0,139.55,139.52,2.34356327]
[1641731109137,15.20924692,139.59,139.52,2.34356327]
[1641731109336,4.0,139.57,139.52,2.34356327]
[1641731109538,4.0,139.59,139.52,11.29788705]
[1641731109735,15.20924692,139.6,139.54,7.16229767]
[1641731109936,15.20924692,139.6,139.58,27.66479]
[1641731110137,50.9634309,139.63,139.58,38.14679]
[1641731110340,4.0,139.62,139.58,38.14679]
[1641731110537,40.2434309,139.63,139.58,38.14679]
[1641731110939,40.2434309,139.63,139.59,2.34102071]
[1641731111439,4.0,139.64,139.59,2.34102071]
[1641731111938,4.0,139.64,139.63,27.66479]
[1641731112139,4.0,139.64,139.63,36.15279]
[1641731113939,4.0,139.64,139.63,8.488]
[1641731114143,4.0,139.64,139.55,1.79]
[1641731114345,4.0,139.64,139.54,7.16229767]
[1641731114543,4.0,139.65,139.56,2.34146108]
[1641731114945,4.0,139.58,139.56,2.34146108]
[1641731115144,4.0,139.58,139.55,2.34146108]
[1641731115343,11.98,139.63,139.55,2.34146108]
[1641731115544,11.98,139.63,139.54,7.16229767]
[1641731115545,4.0,139.57,139.54,7.16229767]
[1641731116046,31.66479,139.61,139.54,27.66479]
[1641731116244,4.0,139.57,139.54,27.66479]
[1641731116645,31.66479,139.61,139.54,27.66479]
[1641731117644,4.0,139.56,139.54,27.66479]
[1641731118949,4.0,139.56,139.52,27.66479]
[1641731119149,4.0,139.56,139.5,7.16435019]
[1641731119652,4.0,139.56,139.51,2.67052405]
[1641731119851,4.0,139.53,139.51,2.67052405]
[1641731120554,4.0,139.53,139.5,34.82914019]
[1641731121754,4.0,139.56,139.5,34.82914019]
[1641731121956,4.0,139.57,139.53,27.66479]
[1641731122554,27.66479,139.61,139.53,27.66479]
[1641731122755,4.0,139.55,139.53,27.66479]
[1641731122955,4.0,139.55,139.5,34.82914019]
[1641731123155,4.0,139.55,139.51,1.791]
[1641731124559,4.0,139.52,139.51,1.791]
[1641731124757,4.0,139.52,139.48,27.66479]
[1641731124758,12.809,139.52,139.48,27.66479]
[1641731126259,8.809,139.52,139.48,27.66479]
[1641731126859,4.0,139.5,139.48,27.66479]
[1641731127061,4.0,139.49,139.46,60.5355039]
[1641731127259,11.28,139.49,139.46,58.7435039]
[1641731127860,7.28,139.49,139.45,27.66479]
[1641731128260,7.28,139.49,139.47,2.67669217]
[1641731129263,7.28,139.49,139.44,2.67669217]
[1641731130667,7.28,139.49,139.45,2.34455871]
[1641731131870,27.66479,139.52,139.45,2.34455871]
[1641731132067,4.0,139.49,139.45,2.34455871]
[1641731132268,27.66479,139.52,139.44,2.34455871]
[1641731132471,31.66479,139.52,139.44,2.34455871]
[1641731132668,4.0,139.52,139.44,2.34455871]
[1641731133068,27.66479,139.53,139.45,2.67706865]
[1641731133269,4.0,139.51,139.46,1.792]
[1641731133470,27.66479,139.53,139.46,1.792]
[1641731133668,27.66479,139.53,139.47,2.34455871]
[1641731133869,27.66479,139.53,139.48,1.792]
[1641731134071,4.0,139.58,139.48,1.792]
[1641731134072,27.66479,139.57,139.48,1.792]
[1641731134270,27.66479,139.57,139.48,55.0223]
[1641731134673,4.0,139.56,139.49,5.02162736]
[1641731134873,4.0,139.5,139.49,5.02162736]
[1641731135074,11.537,139.5,139.49,2.67706865]
[1641731135473,11.537,139.5,139.44,1.792]
[1641731135672,7.537,139.5,139.43,1.792]
[1641731136072,7.537,139.5,139.44,2.34428253]
[1641731136272,4.0,139.51,139.45,1.792]
[1641731137176,27.66479,139.53,139.46,2.67771479]
[1641731137374,27.66479,139.53,139.46,5.0219443]
[1641731137576,4.0,139.51,139.46,5.0219443]
[1641731137777,4.0,139.51,139.47,2.34422951]
[1641731138583,4.0,139.51,139.46,2.34422951]
[1641731139382,27.66479,139.53,139.46,2.34422951]
[1641731140384,4.0,139.5,139.46,2.34422951]
[1641731140583,4.0,139.52,139.46,2.34422951]
[1641731140783,4.0,139.52,139.47,1.792]
[1641731140984,4.0,139.52,139.47,11.17250158]
[1641731141385,4.0,139.52,139.48,2.34422951]
[1641731141784,4.0,139.5,139.48,5.02173109]
[1641731141985,56.2634,139.56,139.48,5.02173109]
[1641731142185,4.0,139.52,139.49,2.34422951]
[1641731142885,27.66479,139.54,139.49,2.34422951]
[1641731142886,4.0,139.53,139.49,2.34422951]
[1641731143085,4.0,139.53,139.48,4.13622951]
[1641731143385,4.0,139.53,139.49,2.34422951]
[1641731143686,27.66479,139.54,139.49,2.34422951]
[1641731144386,27.66479,139.54,139.5,2.68396247]
[1641731144588,4.0,139.53,139.5,2.68396247]
[1641731144987,4.0,139.54,139.51,2.34422951]
[1641731145189,4.0,139.54,139.51,8.17622951]
[1641731145892,4.0,139.54,139.51,5.832]
[1641731146092,27.66479,139.57,139.51,5.832]
[1641731146394,4.0,139.53,139.48,70.32562982]
[1641731146596,4.0,139.56,139.48,70.32562982]
[1641731146793,4.0,139.55,139.49,2.34375329]
[1641731147196,4.0,139.55,139.48,53.3797]
[1641731147396,46.81871982,139.57,139.48,53.3797]
[1641731147594,4.0,139.53,139.48,53.3797]
[1641731147797,46.81871982,139.57,139.47,6.703]
[1641731147994,4.0,139.53,139.49,5.0323095]
[1641731148196,4.0,139.52,139.49,5.0323095]
[1641731148396,4.0,139.5,139.49,2.6881085]
[1641731148597,6.38319863,139.56,139.49,2.6881085]
[1641731148796,4.0,139.51,139.49,2.6881085]
[1641731148997,31.66479,139.57,139.5,2.6881085]
[1641731149397,4.0,139.51,139.5,2.6881085]
[1641731149597,4.0,139.51,139.48,17.84203832]
[1641731149798,4.0,139.55,139.48,17.84203832]
[1641731149998,4.0,139.49,139.48,17.84203832]
[1641731150199,11.309,139.49,139.48,17.84203832]
[1641731151000,11.309,139.49,139.48,2.6881085]
[1641731151399,7.309,139.49,139.48,2.6881085]
[1641731151600,27.66479,139.53,139.48,2.6881085]
[1641731152002,4.0,139.51,139.48,2.6881085]
[1641731152202,27.66479,139.53,139.48,2.6881085]
[1641731152401,4.0,139.52,139.48,8.6701085]
[1641731152801,4.0,139.54,139.48,8.6701085]
[1641731153005,15.15392982,139.56,139.49,1.791]
[1641731153202,4.0,139.55,139.48,8.6701085]
[1641731153604,4.0,139.55,139.49,2.6881085]
[1641731153804,4.0,139.56,139.49,4.4791085]
[1641731154005,15.15392982,139.58,139.49,4.4791085]
[1641731154204,15.15392982,139.6,139.54,27.66479]
[1641731154405,15.15392982,139.6,139.54,36.72079]
[1641731154806,4.0,139.59,139.54,36.72079]
[1641731155205,4.0,139.59,139.55,2.6881085]
[1641731155808,27.66479,139.62,139.55,2.6881085]
[1641731156006,19.15392982,139.63,139.55,2.6881085]
[1641731156306,15.15392982,139.64,139.59,27.66479]
[1641731156507,15.15392982,139.64,139.59,34.45379]
[1641731157408,2.38230644,139.66,139.59,34.45379]
[1641731158810,4.0,139.61,139.59,34.45379]
[1641731159011,4.0,139.61,139.59,27.66479]
[1641731159412,7.113,139.64,139.59,27.66479]
[1641731159615,4.0,139.61,139.59,27.66479]
[1641731159811,4.0,139.6,139.59,27.66479]
[1641731160212,4.0,139.66,139.59,27.66479]
[1641731160411,70.48350982,139.67,139.59,27.66479]
[1641731160412,4.0,139.64,139.59,27.66479]
[1641731162614,55.32958,139.67,139.59,27.66479]
[1641731162815,4.0,139.64,139.59,27.66479]
[1641731163016,4.0,139.62,139.59,27.66479]
[1641731163217,4.0,139.66,139.59,27.66479]
[1641731163521,4.0,139.6,139.59,27.66479]
[1641731164816,4.0,139.61,139.59,27.66479]
[1641731166620,4.0,139.65,139.59,27.66479]
[1641731166822,4.0,139.6,139.54,80.34459]
[1641731167019,4.0,139.59,139.54,29.45479]
[1641731167219,4.0,139.58,139.53,48.4632]
[1641731167419,4.0,139.58,139.52,8.95432378]
[1641731167621,4.0,139.57,139.52,8.95432378]
[1641731167821,4.0,139.57,139.54,2.3426948]
[1641731168021,4.0,139.61,139.54,2.3426948]
[1641731168220,4.0,139.61,139.53,2.3426948]
[1641731168421,4.0,139.56,139.53,2.3426948]
[1641731169621,4.0,139.57,139.53,2.3426948]
[1641731169823,4.0,139.59,139.53,9.175]
[1641731170022,15.15392982,139.64,139.53,10.966]
[1641731170223,4.0,139.62,139.53,10.966]
[1641731170423,4.0,139.62,139.58,27.66479]
[1641731173827,27.66479,139.65,139.58,27.66479]
[1641731174226,4.0,139.62,139.58,27.66479]
[1641731174629,4.0,139.61,139.58,27.66479]
[1641731175733,27.66479,139.65,139.58,27.66479]
[1641731176032,4.0,139.61,139.58,27.66479]
[1641731177030,31.66479,139.65,139.58,27.66479]
[1641731177333,31.66479,139.65,139.57,53.0848]
[1641731177733,4.0,139.6,139.57,53.0848]
[1641731177934,4.0,139.6,139.56,27.66479]
[1641731178333,27.66479,139.65,139.56,27.66479]
[1641731178533,4.0,139.61,139.57,2.34196595]
[1641731180835,27.66479,139.65,139.57,2.34196595]
[1641731181037,31.66479,139.65,139.57,2.34196595]
[1641731181237,4.0,139.58,139.57,2.34196595]
[1641731181639,4.0,139.58,139.54,50.7169]
[1641731182036,4.0,139.56,139.55,2.3423567]
[1641731182236,4.0,139.57,139.55,2.3423567]
[1641731182437,4.0,139.57,139.52,16.94492982]
[1641731182836,27.66479,139.6,139.52,29.45579]
[1641731183035,4.0,139.57,139.53,2.34250179]
[1641731183238,27.66479,139.6,139.53,2.34250179]
[1641731183536,4.0,139.57,139.54,2.68947722]
[1641731184337,27.66479,139.6,139.54,2.68947722]
[1641731184939,27.66479,139.6,139.53,2.68947722]
[1641731185540,27.66479,139.6,139.54,2.34253376]
[1641731186341,27.66479,139.6,139.55,2.68947722]
[1641731186540,4.0,139.56,139.55,2.68947722]
[1641731186741,4.0,139.59,139.55,2.68947722]
[1641731186942,4.0,139.59,139.55,13.26301098]
[1641731187142,27.66479,139.6,139.55,13.26301098]
[1641731187342,4.0,139.59,139.55,13.26301098]
[1641731187644,19.15392982,139.62,139.56,2.34253376]
[1641731187842,19.15392982,139.62,139.56,4.13253376]
[1641731188142,15.15392982,139.62,139.56,4.13253376]
[1641731188440,4.0,139.63,139.57,5.0311776]
[1641731188642,8.571,139.64,139.57,5.0311776]
[1641731188842,4.0,139.63,139.57,5.0311776]
[1641731189142,8.571,139.64,139.57,32.6959676]
[1641731189342,8.571,139.64,139.58,5.0311776]
[1641731190145,8.571,139.64,139.59,2.68864384]
[1641731190845,8.571,139.64,139.58,2.68864384]
[1641731191245,12.571,139.64,139.58,2.68864384]
[1641731192145,8.571,139.64,139.58,2.68864384]
[1641731192545,8.571,139.64,139.59,2.34137681]
[1641731192748,8.571,139.64,139.6,1.79]
[1641731193446,8.571,139.64,139.61,2.34137681]
[1641731193647,8.571,139.64,139.62,1.79]
[1641731193845,10.0,139.67,139.62,1.79]
[1641731194046,4.0,139.66,139.62,1.79]
[1641731194248,6.0,139.67,139.62,1.79]
[1641731194648,4.0,139.69,139.63,7.15768377]
[1641731194947,4.21,139.64,139.63,9.49700829]
[1641731195349,4.0,139.69,139.63,9.49700829]
[1641731195547,15.15392982,139.7,139.63,9.49700829]
[1641731195748,27.66479,139.75,139.64,5.01812486]
[1641731196250,4.0,139.72,139.65,2.33932452]
[1641731196448,4.0,139.72,139.65,8.97032452]
[1641731196649,4.0,139.72,139.65,11.64912486]
[1641731196849,4.0,139.69,139.65,11.64912486]
[1641731197050,4.0,139.72,139.67,27.66479]
[1641731197449,4.0,139.69,139.67,27.66479]
[1641731197649,4.0,139.68,139.67,27.66479]
[1641731197851,4.0,139.68,139.64,27.66479]
[1641731198250,4.0,139.67,139.64,27.66479]
[1641731198450,4.0,139.66,139.63,7.15768377]
[1641731199051,27.66479,139.71,139.63,7.15768377]
[1641731199251,4.0,139.67,139.64,2.33993251]
[1641731199453,4.0,139.68,139.64,2.33993251]
[1641731199650,4.0,139.68,139.64,4.12893251]
[1641731199852,4.0,139.7,139.64,4.12893251]
[1641731200051,31.66479,139.71,139.64,1.789]
[1641731200251,4.0,139.71,139.64,1.789]
[1641731200553,15.15392982,139.74,139.65,2.3392568]
[1641731200753,4.0,139.74,139.65,8.2292568]
[1641731200951,4.0,139.69,139.65,8.2292568]
[1641731201151,4.0,139.69,139.66,2.3392568]
[1641731202151,4.0,139.7,139.66,2.3392568]
[1641731203055,4.0,139.7,139.66,30.0040468]
[1641731203753,4.0,139.7,139.66,27.66479]
[1641731204754,4.0,139.7,139.66,29.45379]
[1641731205155,4.0,139.69,139.66,29.45379]
[1641731205355,31.66479,139.75,139.66,29.45379]
[1641731205656,4.0,139.7,139.66,29.45379]
[1641731206056,4.0,139.69,139.66,29.45379]
[1641731206863,27.66479,139.75,139.66,29.45379]
[1641731207060,27.66479,139.75,139.7,27.66479]
[1641731207258,31.66479,139.75,139.7,34.60779]
[1641731207461,31.66479,139.75,139.71,1.789]
[1641731207958,27.66479,139.75,139.71,1.789]
[1641731208162,4.0,139.74,139.71,1.789]
[1641731208459,31.66479,139.75,139.71,1.789]
[1641731210262,4.0,139.75,139.71,1.789]
[1641731211466,4.0,139.76,139.71,1.789]
[1641731211668,4.0,139.75,139.71,1.789]
[1641731211868,4.0,139.75,139.71,49.4396]
[1641731212068,82.89429,139.79,139.71,49.4396]
[1641731212268,31.66479,139.79,139.71,49.4396]
[1641731212468,4.0,139.75,139.71,49.4396]
[1641731212669,4.0,139.75,139.7,29.45379]
[1641731212870,81.59539,139.79,139.7,29.45379]
[1641731213072,27.66479,139.76,139.7,1.789]
[1641731213270,4.0,139.73,139.68,1.789]
[1641731213471,4.0,139.73,139.71,2.337924]
[1641731213674,27.66479,139.76,139.71,2.337924]
[1641731213972,4.0,139.74,139.69,2.337924]
[1641731214473,27.66479,139.76,139.69,2.337924]
[1641731214673,4.0,139.74,139.69,2.337924]
[1641731214873,27.66479,139.76,139.69,2.337924]
[1641731215074,4.0,139.74,139.69,2.337924]
[1641731215674,4.0,139.71,139.69,2.337924]
[1641731216175,4.0,139.71,139.68,1.789]
[1641731216374,50.876,139.75,139.67,58.64833037]
[1641731216577,4.0,139.71,139.67,58.64833037]
[1641731216774,4.0,139.71,139.69,2.33852912]
[1641731217174,4.0,139.71,139.68,2.33852912]
[1641731219280,4.0,139.71,139.67,1.789]
[1641731219878,31.66479,139.76,139.67,1.789]
[1641731220079,4.0,139.7,139.67,1.789]
[1641731220281,49.8406,139.74,139.67,1.789]
[1641731220479,31.66479,139.76,139.67,1.789]
[1641731220681,4.0,139.71,139.67,1.789]
[1641731223283,4.0,139.74,139.67,1.789]
[1641731223482,31.66479,139.76,139.67,14.66569664]
[1641731223683,27.66479,139.76,139.7,5.72652296]
[1641731223883,4.0,139.74,139.71,1.789]
[1641731224084,4.0,139.74,139.7,5.72652296]
[1641731224284,4.0,139.73,139.69,1.789]
[1641731224484,4.0,139.73,139.68,1.789]
[1641731224684,27.66479,139.76,139.68,1.789]
[1641731224884,4.0,139.73,139.68,1.789]
[1641731225286,27.66479,139.76,139.68,1.789]
[1641731225687,2.37925891,139.75,139.69,2.6840911]
[1641731226891,4.0,139.74,139.69,2.6840911]
[1641731228590,15.15392982,139.77,139.69,2.6840911]
[1641731228791,4.0,139.76,139.7,1.789]
[1641731229290,4.0,139.76,139.7,29.45379]
[1641731229492,15.15392982,139.77,139.7,29.45379]
[1641731229790,4.0,139.74,139.71,2.6840911]
[1641731231092,4.0,139.74,139.7,2.6840911]
[1641731231298,64.45912982,139.78,139.7,2.6840911]
[1641731231692,4.0,139.75,139.7,2.6840911]
[1641731231892,2.38099464,139.77,139.69,2.6840911]
[1641731232394,2.38099464,139.77,139.7,2.33824396]
[1641731233094,17.53492446,139.77,139.71,2.6840911]
[1641731233695,4.0,139.74,139.71,2.6840911]
[1641731233994,4.0,139.74,139.69,2.6840911]
[1641731234696,15.15392982,139.77,139.69,2.6840911]
[1641731235096,4.0,139.71,139.69,2.6840911]
[1641731236498,4.0,139.71,139.67,2.6840911]
[1641731237100,4.0,139.71,139.68,2.33865852]
[1641731238000,4.0,139.71,139.69,2.6840911]
[1641731238202,31.66479,139.75,139.69,2.6840911]
[1641731238402,4.0,139.71,139.69,2.6840911]
[1641731238602,27.66479,139.75,139.69,2.6840911]
[1641731238806,2.38357913,139.74,139.69,2.6840911]
[1641731239103,6.38357913,139.74,139.69,2.6840911]
[1641731239302,2.38357913,139.74,139.69,2.6840911]
[1641731239603,2.38357913,139.74,139.67,28.39108626]
[1641731240404,2.38357913,139.74,139.68,2.33874364]
[1641731240806,4.0,139.72,139.68,2.33874364]
[1641731241207,2.38357913,139.74,139.69,2.6840911]
[1641731241406,4.0,139.72,139.69,2.6840911]
[1641731241606,6.38357913,139.74,139.69,2.6840911]
[1641731242206,2.38357913,139.74,139.69,2.6840911]
[1641731242406,4.0,139.74,139.69,2.6840911]
[1641731242608,27.66479,139.75,139.69,2.6840911]
[1641731242809,4.0,139.72,139.69,2.6840911]
[1641731243107,2.38476358,139.74,139.69,2.6840911]
[1641731243908,2.38476358,139.74,139.68,2.6840911]
[1641731244108,2.38476358,139.74,139.69,1.789]
[1641731244308,4.0,139.73,139.69,4.12742423]
[1641731244507,4.0,139.72,139.69,2.33842423]
[1641731244708,4.0,139.72,139.7,2.6840911]
[1641731245510,27.66479,139.75,139.7,2.6840911]
[1641731245908,19.15392982,139.76,139.7,2.6840911]
[1641731246107,2.38522579,139.74,139.72,7.15307582]
[1641731246308,9.74463624,139.77,139.72,27.15307582]
[1641731246508,9.74463624,139.77,139.73,1.788]
[1641731246707,9.74463624,139.77,139.73,11.72295004]